[Event "31st Roquetas de Mar Open 2020"]
[Site "Roquetas de Mar"]
[Date "2020.01.04"]
[Round "4.7"]
[White "Raja Harshit"]
[Black "Sivuk, Vitaly"]
[Result "1/2-1/2"]
[ECO "C72"]
[WhiteElo "2482"]
[BlackElo "2579"]
[Annotator "ChessBase"]
[PlyCount "63"]
[EventDate "2020.01.02"]
[EventType "swiss"]
[EventCountry "ESP"]
[SourceTitle "playchess.com"]
[Source "ChessBase"]
[SourceQuality "1"]
[TimeControl "5400+30"]

1. e4 e5 2. Nf3 Nc6 3. Bb5 a6 4. Ba4 d6 5. O-O Bd7 6. d4 Nf6 7. Bxc6 Bxc6 8. Nc3 Be7 9. Re1 exd4 10. Nxd4 Bd7 11. Qf3 O-O 12. h3 b5 13. g4 b4 14. Nce2 Ne8 15. Bf4 g6 16. Rad1 c5 17. Nb3 Qc8 18. Bh6 Ng7 19. Nf4 Be6 20. Nd5 Bxd5 21. exd5 Qd7 22. Na5 Rfe8 23. c3 bxc3 24. Qxc3 Bf8 25. Nc4 Rxe1+ 26. Rxe1 Re8 27. Rxe8 Nxe8 28. Bxf8 Kxf8 29. Qh8+ Ke7 30. Qxh7 Qa4 31. Qh4+ Nf6 32. Nb6 1/2-1/2

[Event "31st Roquetas de Mar Open 2020"]
[Site "Roquetas de Mar"]
[Date "2020.01.04"]
[Round "4.10"]
[White "Shariyazdanov, Andrey"]
[Black "Kumar, Nikhil"]
[Result "1/2-1/2"]
[ECO "A05"]
[WhiteElo "2519"]
[BlackElo "2315"]
[Annotator "ChessBase"]
[PlyCount "79"]
[EventDate "2020.01.02"]
[EventType "swiss"]
[EventCountry "ESP"]
[SourceTitle "playchess.com"]
[Source "ChessBase"]
[SourceQuality "1"]
[TimeControl "5400+30"]

1. Nf3 {[%emt 0:00:39]} Nf6 {[%emt 0:00:18]} 2. c4 {[%emt 0:00:21]} e6 {[%emt 0:00:12]} 3. d4 {[%emt 0:00:15]} d5 {[%emt 0:00:12]} 4. e3 {[%emt 0:00:26]} c5 {[%emt 0:00:51]} 5. a3 {[%emt 0:00:32]} dxc4 {[%emt 0:02:37]} 6. Bxc4 {[%emt 0:00:20]} Nc6 {[%emt 0:00:07]} 7. dxc5 {[%emt 0:04:48]} Qxd1+ {[%emt 0:01:33]} 8. Kxd1 {[%emt 0:00:08]} Bxc5 {[%emt 0:02:07]} 9. Ke2 {[%emt 0:00:58]} a6 {[%emt 0:01:59]} 10. b4 {[%emt 0:05:02]} Be7 {[%emt 0:00:19]} 11. Bb2 {[%emt 0:00:19]} b5 {[%emt 0:01:33]} 12. Bd3 {[%emt 0:00:16]} Bb7 {[%emt 0:02:22]} 13. Nbd2 {[%emt 0:00:40]} O-O {[%emt 0:01:16]} 14. Rhc1 {[%emt 0:01:10]} Rac8 {[%emt 0:01:36]} 15. Nb3 {[%emt 0:01:27]} Nd7 {[%emt 0:05:05]} 16. Rc2 {[%emt 0:06:12]} Bd6 {[%emt 0:04:42]} 17. Rac1 {[%emt 0:04:42]} Nce5 {[%emt 0:09:57]} 18. Nxe5 {[%emt 0:02:10]} Nxe5 {[%emt 0:02:45]} 19. Bxe5 {[%emt 0:00:53]} Bxe5 {[%emt 0:01:05]} 20. Nc5 {[%emt 0:00:41]} Rc7 {[%emt 0:06:42]} 21. f4 {[%emt 0:11:38]} Bf6 {[%emt 0:00:13]} 22. Be4 {[%emt 0:03:42]} Rxc5 {[%emt 0:07:38]} 23. Bxb7 {[%emt 0:00:16]} Rxc2+ {[%emt 0:00:21]} 24. Rxc2 {[%emt 0:00:04]} g5 {[%emt 0:00:31]} 25. fxg5 {[%emt 0:06:09]} Bxg5 {[%emt 0:00:08]} 26. Rc6 {[%emt 0:01:12]} Rb8 {[%emt 0:06:21]} 27. Bxa6 {[%emt 0:00:23]} Kg7 {[%emt 0:04:53]} 28. Kd3 {[%emt 0:08:39]} Rd8+ {[%emt 0:01:08]} 29. Kc3 {[%emt 0:00:25]} Bxe3 {[%emt 0:05:30]} 30. Bxb5 {[%emt 0:00:08]} Rd2 {[%emt 0:00:06]} 31. a4 {[%emt 0:02:50]} Rxg2 {[%emt 0:00:15]} 32. a5 {[%emt 0:00:10]} Rxh2 {[%emt 0:03:03]} 33. a6 {[%emt 0:00:55]} h5 {[%emt 0:11:24]} 34. Kd3 {[%emt 0:00:19]} Ba7 {[%emt 0:01:16]} 35. Rc7 {[%emt 0:00:41]} Rh3+ {[%emt 0:00:57]} 36. Ke2 {[%emt 0:01:13]} Bd4 {[%emt 0:05:11]} 37. Rd7 {[%emt 0:00:39]} Bb6 {[%emt 0:04:07]} 38. Rb7 {[%emt 0:01:08]} Bd4 {[%emt 0:00:06]} 39. Bc6 {[%emt 0:02:34]} Re3+ {[%emt 0:04:06]} 40. Kd2 {[%emt 0:03:33]} 1/2-1/2

[Event "31st Roquetas de Mar Open 2020"]
[Site "Roquetas de Mar"]
[Date "2020.01.04"]
[Round "4.12"]
[White "Malovanyi, Yulian"]
[Black "Marin, Mihail"]
[Result "1/2-1/2"]
[ECO "C01"]
[WhiteElo "2360"]
[BlackElo "2496"]
[Annotator "ChessBase"]
[PlyCount "61"]
[EventDate "2020.01.02"]
[EventType "swiss"]
[EventCountry "ESP"]
[SourceTitle "playchess.com"]
[Source "ChessBase"]
[SourceQuality "1"]
[TimeControl "5400+30"]

1. e4 {[%emt 0:00:00]} e6 {[%emt 0:00:31]} 2. d4 {[%emt 0:00:12]} d5 {[%emt 0:00:09]} 3. exd5 {[%emt 0:01:10]} exd5 {[%emt 0:00:07]} 4. Nf3 {[%emt 0:00:09]} Nf6 {[%emt 0:00:05]} 5. Bd3 {[%emt 0:00:17]} c5 {[%emt 0:00:07]} 6. O-O {[%emt 0:00:50]} Nc6 {[%emt 0:00:12]} 7. Re1+ {[%emt 0:13:39]} Be7 {[%emt 0:00:07]} 8. dxc5 {[%emt 0:04:28]} O-O {[%emt 0:00:06]} 9. Nbd2 {[%emt 0:02:43]} Bxc5 {[%emt 0:02:41]} 10. Nb3 {[%emt 0:01:41]} Bb6 {[%emt 0:02:20]} 11. Bg5 {[%emt 0:14:45]} Bg4 {[%emt 0:03:51]} 12. c3 {[%emt 0:03:10]} Qd6 {[%emt 0:10:04]} 13. Bh4 {[%emt 0:04:12]} Rfe8 {[%emt 0:04:31]} 14. Rxe8+ {[%emt 0:10:41]} Rxe8 {[%emt 0:00:21]} 15. Bc2 {[%emt 0:02:54]} Qe6 {[%emt 0:17:57]} 16. Nbd2 {[%emt 0:17:17]} Ne4 {[%emt 0:13:27]} 17. h3 {[%emt 0:06:53]} Bh5 {[%emt 0:02:12]} 18. Qf1 {[%emt 0:05:29]} Nxd2 {[%emt 0:21:46]} 19. Nxd2 {[%emt 0:00:22]} Be2 {[%emt 0:00:06]} 20. Qe1 {[%emt 0:02:20]} Qe5 {[%emt 0:07:29]} 21. Nf1 {[%emt 0:00:41]} Re6 {[%emt 0:02:06]} 22. Bg3 {[%emt 0:00:51]} Qg5 {[%emt 0:00:21]} 23. Qd2 {[%emt 0:00:30]} Qxd2 {[%emt 0:02:58]} 24. Nxd2 {[%emt 0:00:01]} d4 {[%emt 0:00:09]} 25. Bb3 {[%emt 0:01:07]} Re8 {[%emt 0:03:40]} 26. cxd4 {[%emt 0:02:11]} Nxd4 {[%emt 0:00:29]} 27. Nc4 {[%emt 0:01:17]} Bxc4 {[%emt 0:03:08]} 28. Bxc4 {[%emt 0:00:02]} Ne2+ {[%emt 0:00:12]} 29. Kh2 {[%emt 0:01:02]} Nxg3 {[%emt 0:00:09]} 30. Kxg3 {[%emt 0:00:08]} g6 {[%emt 0:02:02]} 31. Rd1 {[%emt 0:00:31]} 1/2-1/2

[Event "31st Roquetas de Mar Open 2020"]
[Site "Roquetas de Mar"]
[Date "2020.01.04"]
[Round "4.13"]
[White "Villanueva, Mario"]
[Black "Ajay Karthikeyan"]
[Result "1/2-1/2"]
[ECO "B36"]
[WhiteElo "2488"]
[BlackElo "2249"]
[Annotator "ChessBase"]
[PlyCount "89"]
[EventDate "2020.01.02"]
[EventType "swiss"]
[EventCountry "ESP"]
[SourceTitle "playchess.com"]
[Source "ChessBase"]
[SourceQuality "1"]
[TimeControl "5400+30"]

1. e4 c5 2. Nf3 g6 3. d4 cxd4 4. Nxd4 Nc6 5. c4 Nf6 6. Nc3 d6 7. Be2 Nxd4 8. Qxd4 Bg7 9. Be3 O-O 10. Qd3 Bg4 11. f3 Be6 12. Bd4 Nd7 13. O-O Qa5 14. Bxg7 Kxg7 15. b3 Rac8 16. f4 f6 17. Rac1 a6 18. Kh1 Rfe8 19. h4 Qc5 20. Qg3 Rg8 21. Rfe1 b5 22. cxb5 axb5 23. Bxb5 Nb6 24. Qe3 Qb4 25. Be2 Rc5 26. Bf3 Re8 27. Nd5 Bxd5 28. Rxc5 dxc5 29. exd5 c4 30. Rc1 Rc8 31. bxc4 Rxc4 32. Rxc4 Nxc4 33. Qe4 Kf8 34. Kh2 Qc5 35. Be2 Nd6 36. Qf3 Nf5 37. h5 Nd4 38. Qe4 Nxe2 39. Qxe2 Qxd5 40. hxg6 hxg6 41. g3 g5 42. fxg5 Qxg5 43. a4 Qa5 44. Qd1 Ke8 45. Kh3 1/2-1/2

[Event "31st Roquetas de Mar Open 2020"]
[Site "Roquetas de Mar"]
[Date "2020.01.04"]
[Round "4.15"]
[White "Vazquez Igarza, Renier"]
[Black "Piasetski, Leon"]
[Result "1-0"]
[ECO "A55"]
[WhiteElo "2552"]
[BlackElo "2219"]
[Annotator "RC"]
[PlyCount "81"]
[EventDate "2020.01.02"]
[EventType "swiss"]
[EventCountry "ESP"]
[SourceTitle "playchess.com"]
[Source "ChessBase"]
[SourceQuality "1"]
[TimeControl "5400+30"]

1. d4 Nf6 2. c4 d6 3. Nf3 Nbd7 4. Nc3 e5 5. e4 Be7 6. Be2 O-O 7. O-O c6 8. Qc2 a6 9. Rd1 Qc7 10. Rb1 b5 11. b4 exd4 12. Nxd4 Ne5 13. cxb5 cxb5 14. Bg5 Qa7 15. a4 Bd7 16. axb5 Rac8 17. Qb2 axb5 18. Ndxb5 Qb8 19. Nd4 Nc4 20. Qb3 Nb6 21. Bf4 Rfe8 22. Ba6 Rxc3 23. Qxc3 Nxe4 24. Qf3 Bh4 25. Bg3 Bxg3 26. hxg3 d5 27. Rbc1 Qd6 28. b5 g5 29. Nf5 Qg6 30. Ne3 h5 31. Bb7 Bxb5 32. Bxd5 Nxd5 33. Rxd5 Bc6 34. Rxc6 Qxc6 35. Rxg5+ Kf8 36. Rxh5 Qf6 37. g4 Qxf3 38. gxf3 Nf6 39. Rh8+ Ke7 40. Nf5+ Kd7 41. Rh6 1-0

[Event "31st Roquetas de Mar Open 2020"]
[Site "Roquetas de Mar"]
[Date "2020.01.05"]
[Round "5.6"]
[White "Klekowski, Maciej"]
[Black "Suarez Uriel, Adrian"]
[Result "1/2-1/2"]
[ECO "A22"]
[WhiteElo "2515"]
[BlackElo "2362"]
[Annotator "ChessBase"]
[PlyCount "111"]
[EventDate "2020.01.02"]
[EventType "swiss"]
[EventCountry "ESP"]
[SourceTitle "playchess.com"]
[Source "ChessBase"]
[SourceQuality "1"]
[TimeControl "5400+30"]

1. c4 {[%emt 0:02:07]} e5 {[%emt 0:00:00]} 2. Nc3 {[%emt 0:00:08]} Nf6 {[%emt 0:00:00]} 3. g3 {[%emt 0:02:58]} d5 {[%emt 0:00:00]} 4. cxd5 {[%emt 0:00:04]} Nxd5 {[%emt 0:00:04]} 5. Bg2 {[%emt 0:00:05]} Nb6 {[%emt 0:00:03]} 6. d3 {[%emt 0:00:05]} Be7 {[%emt 0:00:28]} 7. Be3 {[%emt 0:03:19]} O-O {[%emt 0:00:18]} 8. Rc1 {[%emt 0:00:07]} Nc6 {[%emt 0:05:19]} 9. Bxc6 {[%emt 0:00:52]} bxc6 {[%emt 0:03:46]} 10. Nf3 {[%emt 0:18:19]} Bd6 {[%emt 0:06:07]} 11. Ne4 {[%emt 0:06:44]} Nd5 {[%emt 0:08:25]} 12. Bc5 {[%emt 0:12:33]} f5 {[%emt 0:04:32]} 13. Ned2 {[%emt 0:00:43]} Rb8 {[%emt 0:13:31]} 14. Qa4 {[%emt 0:00:59]} Qe7 {[%emt 0:10:03]} 15. d4 {[%emt 0:26:20]} exd4 {[%emt 0:10:12]} 16. Qxd4 {[%emt 0:06:26]} Bxc5 {[%emt 0:01:43]} 17. Qxc5 {[%emt 0:00:27]} Qxc5 {[%emt 0:00:18]} 18. Rxc5 {[%emt 0:00:04]} Rxb2 {[%emt 0:00:08]} 19. O-O {[%emt 0:03:07]} Ba6 {[%emt 0:05:58]} 20. Rxc6 {[%emt 0:02:05]} Bxe2 {[%emt 0:00:11]} 21. Re1 {[%emt 0:00:06]} Bb5 {[%emt 0:00:34]} 22. Rc5 {[%emt 0:00:35]} c6 {[%emt 0:00:10]} 23. a3 {[%emt 0:04:49]} f4 {[%emt 0:05:37]} 24. g4 {[%emt 0:00:05]} Ra2 {[%emt 0:00:18]} 25. Nb1 {[%emt 0:02:52]} Be2 {[%emt 0:05:23]} 26. Kg2 {[%emt 0:00:54]} Rb8 {[%emt 0:01:01]} 27. Nd4 {[%emt 0:01:18]} f3+ {[%emt 0:00:42]} 28. Kg3 {[%emt 0:00:01]} Nf6 {[%emt 0:01:59]} 29. Nc3 {[%emt 0:02:14]} Rxa3 {[%emt 0:00:14]} 30. Kh3 {[%emt 0:01:01]} Nd7 {[%emt 0:04:36]} 31. Rxc6 {[%emt 0:00:45]} Ne5 {[%emt 0:00:01]} 32. Rc7 {[%emt 0:01:00]} Nd3 {[%emt 0:00:10]} 33. Rg1 {[%emt 0:01:17]} Nxf2+ {[%emt 0:00:21]} 34. Kh4 {[%emt 0:00:01]} Re8 {[%emt 0:08:37]} 35. Rb1 {[%emt 0:01:33]} Ra6 {[%emt 0:01:46]} 36. Nf5 {[%emt 0:00:33]} Kh8 {[%emt 0:02:44]} 37. Re7 {[%emt 0:00:52]} Rg8 {[%emt 0:01:02]} 38. Nxe2 {[%emt 0:00:24]} fxe2 {[%emt 0:00:25]} 39. Rxe2 {[%emt 0:00:16]} Nd3 {[%emt 0:00:07]} 40. Re3 {[%emt 0:00:20]} Nf4 {[%emt 0:00:16]} 41. Kg3 {[%emt 0:00:11]} Nd5 {[%emt 0:00:21]} 42. Rd3 {[%emt 0:00:06]} Nf6 {[%emt 0:01:06]} 43. g5 {[%emt 0:01:36]} Ne4+ {[%emt 0:00:17]} 44. Kf4 {[%emt 0:00:05]} Ra4 {[%emt 0:00:43]} 45. Rd4 {[%emt 0:00:10]} Rxd4 {[%emt 0:00:06]} 46. Nxd4 {[%emt 0:00:03]} Nc5 {[%emt 0:00:08]} 47. Ke5 {[%emt 0:01:20]} Re8+ {[%emt 0:01:17]} 48. Kd6 {[%emt 0:00:23]} Ne4+ {[%emt 0:00:23]} 49. Kd7 {[%emt 0:00:03]} Ra8 {[%emt 0:00:09]} 50. Ne6 {[%emt 0:00:37]} a5 {[%emt 0:00:26]} 51. Re1 {[%emt 0:00:05]} Nc3 {[%emt 0:00:51]} 52. Nd8 {[%emt 0:00:26]} Ra7+ {[%emt 0:01:35]} 53. Kd6 {[%emt 0:00:45]} Ra6+ {[%emt 0:00:11]} 54. Kc5 {[%emt 0:01:32]} h6 {[%emt 0:00:02]} 55. Kc4 {[%emt 0:00:08]} Na2 {[%emt 0:01:37]} 56. gxh6 {[%emt 0:00:53]} 1/2-1/2

[Event "31st Roquetas de Mar Open 2020"]
[Site "Roquetas de Mar"]
[Date "2020.01.05"]
[Round "5.10"]
[White "Kiselev, Pavel"]
[Black "Shariyazdanov, Andrey"]
[Result "1/2-1/2"]
[ECO "E16"]
[WhiteElo "2303"]
[BlackElo "2519"]
[Annotator "ChessBase"]
[PlyCount "98"]
[EventDate "2020.01.02"]
[EventType "swiss"]
[EventCountry "ESP"]
[SourceTitle "playchess.com"]
[Source "ChessBase"]
[SourceQuality "1"]
[TimeControl "5400+30"]

1. d4 {[%emt 0:00:00]} Nf6 {[%emt 0:02:27]} 2. Nf3 {[%emt 0:00:41]} b6 {[%emt 0:00:10]} 3. c4 {[%emt 0:00:24]} Bb7 {[%emt 0:01:50]} 4. g3 {[%emt 0:06:56]} e6 {[%emt 0:05:55]} 5. Bg2 {[%emt 0:00:05]} Bb4+ {[%emt 0:00:19]} 6. Nbd2 {[%emt 0:00:03]} Be7 {[%emt 0:00:51]} 7. O-O {[%emt 0:00:16]} c5 {[%emt 0:00:12]} 8. d5 {[%emt 0:09:31]} exd5 {[%emt 0:03:46]} 9. Nh4 {[%emt 0:00:09]} O-O {[%emt 0:08:41]} 10. Nb1 {[%emt 0:06:18]} Ne4 {[%emt 0:06:43]} 11. cxd5 {[%emt 0:07:41]} Bxh4 {[%emt 0:00:14]} 12. Bxe4 {[%emt 0:00:10]} Bf6 {[%emt 0:00:05]} 13. Nc3 {[%emt 0:01:28]} d6 {[%emt 0:02:21]} 14. Bg2 {[%emt 0:05:44]} Nd7 {[%emt 0:01:05]} 15. Ne4 {[%emt 0:02:15]} Be7 {[%emt 0:00:26]} 16. Bf4 {[%emt 0:00:53]} Nf6 {[%emt 0:00:41]} 17. Nc3 {[%emt 0:00:48]} Re8 {[%emt 0:00:20]} 18. Qc2 {[%emt 0:09:07]} Bf8 {[%emt 0:02:46]} 19. Rad1 {[%emt 0:00:56]} a6 {[%emt 0:03:17]} 20. a4 {[%emt 0:00:07]} g6 {[%emt 0:00:18]} 21. h3 {[%emt 0:01:41]} Bg7 {[%emt 0:03:33]} 22. g4 {[%emt 0:02:20]} Bc8 {[%emt 0:01:45]} 23. Qd3 {[%emt 0:04:04]} h5 {[%emt 0:11:42]} 24. g5 {[%emt 0:03:01]} Nd7 {[%emt 0:00:14]} 25. Qg3 {[%emt 0:03:46]} Ne5 {[%emt 0:01:58]} 26. Bc1 {[%emt 0:00:32]} b5 {[%emt 0:05:34]} 27. axb5 {[%emt 0:00:39]} axb5 {[%emt 0:00:04]} 28. Nxb5 {[%emt 0:00:44]} Qb6 {[%emt 0:01:41]} 29. Nc3 {[%emt 0:00:43]} Bf5 {[%emt 0:01:18]} 30. Be4 {[%emt 0:05:10]} Bd7 {[%emt 0:02:58]} 31. Bc2 {[%emt 0:01:42]} Qb4 {[%emt 0:03:11]} 32. Ne4 {[%emt 0:10:31]} Bf5 {[%emt 0:01:01]} 33. Nf6+ {[%emt 0:00:07]} Bxf6 {[%emt 0:00:19]} 34. Bxf5 {[%emt 0:00:03]} Bg7 {[%emt 0:00:32]} 35. Bc2 {[%emt 0:00:18]} Nc4 {[%emt 0:06:03]} 36. b3 {[%emt 0:03:21]} Na3 {[%emt 0:00:16]} 37. Bd3 {[%emt 0:00:49]} Qxb3 {[%emt 0:02:11]} 38. Qxd6 {[%emt 0:00:40]} c4 {[%emt 0:02:35]} 39. Bxa3 {[%emt 0:00:57]} Rxa3 {[%emt 0:02:33]} 40. Qc6 {[%emt 0:02:55]} Re5 {[%emt 0:01:52]} 41. Qxc4 {[%emt 0:00:15]} Rxg5+ {[%emt 0:02:26]} 42. Kh2 {[%emt 0:00:03]} Rxd5 {[%emt 0:02:12]} 43. Qxb3 {[%emt 0:01:44]} Rxb3 {[%emt 0:00:03]} 44. f4 {[%emt 0:00:15]} Rd4 {[%emt 0:02:00]} 45. Rc1 {[%emt 0:02:27]} Rb2 {[%emt 0:02:56]} 46. Rc8+ {[%emt 0:01:03]} Kh7 {[%emt 0:00:08]} 47. Kg3 {[%emt 0:00:10]} Bh6 {[%emt 0:02:43]} 48. f5 {[%emt 0:01:42]} h4+ {[%emt 0:00:47]} 49. Kf3 {[%emt 0:00:05]} Rf4+ {[%emt 0:01:46] Ke4} 1/2-1/2

[Event "31st Roquetas de Mar Open 2020"]
[Site "Roquetas de Mar"]
[Date "2020.01.05"]
[Round "5.13"]
[White "Marin, Mihail"]
[Black "Moreto Quintana, Alex"]
[Result "1/2-1/2"]
[ECO "A20"]
[WhiteElo "2496"]
[BlackElo "2165"]
[Annotator "RC"]
[PlyCount "194"]
[EventDate "2020.01.02"]
[EventType "swiss"]
[EventCountry "ESP"]
[SourceTitle "playchess.com"]
[Source "ChessBase"]
[SourceQuality "1"]
[TimeControl "5400+30"]

1. c4 e5 2. g3 Nf6 3. Bg2 d5 4. cxd5 Nxd5 5. Nc3 Nb6 6. Nf3 Nc6 7. O-O Be7 8. b3 Be6 9. Bb2 Qd7 10. Rc1 f5 11. e4 O-O 12. d3 Rad8 13. exf5 Bxf5 14. Ne4 Bg4 15. h3 Bxh3 16. Nxe5 Nxe5 17. Bxe5 c6 18. d4 Bxg2 19. Kxg2 Qf5 20. Qe2 Rfe8 21. f4 Nd5 22. g4 Qg6 23. f5 Qf7 24. Qf3 Bf6 25. Bxf6 Nxf6 26. Ng5 Qd5 27. Ne6 Nxg4 28. Kg3 h5 29. Rce1 Qxf3+ 30. Rxf3 Rxd4 31. Rh1 Rd2 32. Rxh5 Nf6 33. Rh1 Rxa2 34. Kf4 Re2 35. Rfh3 Nd5+ 36. Kg4 Re4+ 37. Kg5 Nf6 38. Kg6 Rg4+ 39. Ng5 Kf8 40. Rh8+ Ke7 41. Re1+ Kd7 42. Rhxe8 Nxe8 43. Re4 Rxe4 44. Nxe4 b6 45. Ng5 a5 46. Ne6 b5 47. Nxg7 Nxg7 48. Kxg7 a4 49. bxa4 bxa4 50. f6 a3 51. f7 a2 52. f8=Q a1=Q+ 53. Kg6 Qh1 54. Kg5 Qg2+ 55. Kh4 Qh2+ 56. Kg4 Qg2+ 57. Kh4 Qg6 58. Qa8 Qe4+ 59. Kg3 Kd6 60. Kf2 Ke5 61. Qb7 Kd5 62. Qa8 Kd4 63. Qa1+ Kc5 64. Qa5+ Kd6 65. Qd8+ Ke5 66. Qe7+ Kd4 67. Qb4+ Kd5 68. Qb7 Kc4 69. Qb6 Kc3 70. Qc5+ Kd2 71. Qa5+ Kc1 72. Qa3+ Kc2 73. Qa2+ Kc1 74. Qa3+ Kd2 75. Qa5+ Kd3 76. Qa3+ Kd4 77. Qa4+ Kd5 78. Qa8 Qc2+ 79. Ke3 Kc5 80. Qb7 Kd5 81. Qa8 Qc3+ 82. Ke2 Kd4 83. Qh8+ Kc4 84. Qg8+ Kb4 85. Qb8+ Ka3 86. Qa7+ Kb2 87. Qb7+ Kc1 88. Qa7 c5 89. Qa8 Qd2+ 90. Kf3 Qd4 91. Qa3+ Kc2 92. Qa7 Qd5+ 93. Ke3 Qe5+ 94. Kf3 c4 95. Qa4+ Kb2 96. Qxc4 Qc3+ 97. Qxc3+ Kxc3 1/2-1/2

[Event "31st Roquetas de Mar Open 2020"]
[Site "Roquetas de Mar"]
[Date "2020.01.05"]
[Round "5.16"]
[White "Gascon Del Nogal, Jose Rafael"]
[Black "Nawin J J"]
[Result "1-0"]
[ECO "B28"]
[WhiteElo "2466"]
[BlackElo "1993"]
[Annotator "ChessBase"]
[PlyCount "85"]
[EventDate "2020.01.02"]
[EventType "swiss"]
[EventCountry "ESP"]
[SourceTitle "playchess.com"]
[Source "ChessBase"]
[SourceQuality "1"]
[TimeControl "5400+30"]

1. e4 {[%emt 0:03:37]} c5 {[%emt 0:00:10]} 2. Nf3 {[%emt 0:00:06]} a6 {[%emt 0:00:18]} 3. c3 {[%emt 0:00:07]} d5 {[%emt 0:00:16]} 4. exd5 {[%emt 0:00:09]} Qxd5 {[%emt 0:00:18]} 5. d4 {[%emt 0:00:48]} e6 {[%emt 0:02:24]} 6. Bd3 {[%emt 0:01:12]} Nf6 {[%emt 0:04:33]} 7. O-O {[%emt 0:00:06]} Nc6 {[%emt 0:00:58]} 8. Re1 {[%emt 0:01:35]} Be7 {[%emt 0:03:24]} 9. Be3 {[%emt 0:06:05]} cxd4 {[%emt 0:01:27]} 10. cxd4 {[%emt 0:00:42]} O-O {[%emt 0:00:38]} 11. Nc3 {[%emt 0:00:05]} Qd6 {[%emt 0:02:05]} 12. Rc1 {[%emt 0:00:08]} b5 {[%emt 0:04:05]} 13. Bg5 {[%emt 0:03:15]} Bb7 {[%emt 0:04:44]} 14. Bxf6 {[%emt 0:00:20]} Bxf6 {[%emt 0:05:15]} 15. Ne4 {[%emt 0:00:10]} Qe7 {[%emt 0:01:15]} 16. d5 {[%emt 0:02:09]} Nb4 {[%emt 0:08:55]} 17. d6 {[%emt 0:18:02]} Qd8 {[%emt 0:01:27]} 18. Bb1 {[%emt 0:02:18]} Nd5 {[%emt 0:14:34]} 19. Qd2 {[%emt 0:03:21]} h6 {[%emt 0:05:49]} 20. h4 {[%emt 0:09:18]} Qb6 {[%emt 0:12:35]} 21. Rc5 {[%emt 0:04:54]} Bd8 {[%emt 0:01:43]} 22. Ne5 {[%emt 0:00:24]} f5 {[%emt 0:03:10]} 23. Nd7 {[%emt 0:00:46]} Qa7 {[%emt 0:01:21]} 24. Nxf8 {[%emt 0:01:42]} Kxf8 {[%emt 0:00:41]} 25. Rxd5 {[%emt 0:00:34]} Bxd5 {[%emt 0:00:25]} 26. Nc3 {[%emt 0:00:47]} Qc5 {[%emt 0:12:11]} 27. Bxf5 {[%emt 0:02:15]} exf5 {[%emt 0:00:14]} 28. Qxd5 {[%emt 0:00:37]} Qxd5 {[%emt 0:00:38]} 29. Nxd5 {[%emt 0:00:05]} Bxh4 {[%emt 0:00:11]} 30. g3 {[%emt 0:01:55]} Bf6 {[%emt 0:03:12]} 31. Nxf6 {[%emt 0:00:10]} gxf6 {[%emt 0:00:07]} 32. Re6 {[%emt 0:00:02]} Kf7 {[%emt 0:02:38]} 33. Re7+ {[%emt 0:00:05]} Kg6 {[%emt 0:00:06]} 34. d7 {[%emt 0:00:13]} Rd8 {[%emt 0:00:11]} 35. f4 {[%emt 0:00:11]} Kh5 {[%emt 0:01:49]} 36. b4 {[%emt 0:00:07]} Kg6 {[%emt 0:00:50]} 37. Kf2 {[%emt 0:00:07]} Kh5 {[%emt 0:00:26]} 38. Rg7 {[%emt 0:00:17]} Rb8 {[%emt 0:01:50]} 39. Ke3 {[%emt 0:00:07]} a5 {[%emt 0:00:43]} 40. bxa5 {[%emt 0:00:06]} b4 {[%emt 0:00:03]} 41. Re7 {[%emt 0:00:11]} b3 {[%emt 0:00:17]} 42. axb3 {[%emt 0:00:05]} Rxb3+ {[%emt 0:00:04]} 43. Kd2 {[%emt 0:00:06]} 1-0

[Event "31st Roquetas de Mar Open 2020"]
[Site "Roquetas de Mar"]
[Date "2020.01.05"]
[Round "6.1"]
[White "Harutyunian, Tigran K."]
[Black "Grigoryan, Karen H."]
[Result "1/2-1/2"]
[ECO "D20"]
[WhiteElo "2533"]
[BlackElo "2632"]
[Annotator "RC"]
[PlyCount "32"]
[EventDate "2020.01.02"]
[EventType "swiss"]
[EventCountry "ESP"]
[SourceTitle "playchess.com"]
[Source "ChessBase"]
[SourceQuality "1"]
[TimeControl "5400+30"]

1. d4 d5 2. c4 dxc4 3. e4 Nf6 4. e5 Nd5 5. Bxc4 Nb6 6. Bb3 Nc6 7. Nf3 Bg4 8. Ng5 Bxd1 9. Bxf7+ Kd7 10. Be6+ Ke8 11. Bf7+ Kd7 12. Be6+ Ke8 13. Bf7+ Kd7 14. Be6+ Ke8 15. Bf7+ Kd7 16. Be6+ Ke8 1/2-1/2

[Event "31st Roquetas de Mar Open 2020"]
[Site "Roquetas de Mar"]
[Date "2020.01.05"]
[Round "6.6"]
[White "Bjerre, Jonas Buhl"]
[Black "Gascon Del Nogal, Jose Rafael"]
[Result "1-0"]
[ECO "E10"]
[WhiteElo "2535"]
[BlackElo "2466"]
[Annotator "ChessBase"]
[PlyCount "75"]
[EventDate "2020.01.02"]
[EventType "swiss"]
[EventCountry "ESP"]
[SourceTitle "playchess.com"]
[Source "ChessBase"]
[SourceQuality "1"]
[TimeControl "5400+30"]

1. d4 {[%emt 0:00:00]} Nf6 {[%emt 0:01:18]} 2. c4 {[%emt 0:00:00]} e6 {[%emt 0:00:04]} 3. Nf3 {[%emt 0:00:00]} d5 {[%emt 0:00:03]} 4. g3 {[%emt 0:00:10]} Bb4+ {[%emt 0:00:04]} 5. Bd2 {[%emt 0:00:06]} Be7 {[%emt 0:00:04]} 6. Bg2 {[%emt 0:00:09]} O-O {[%emt 0:00:06]} 7. O-O {[%emt 0:00:07]} Nbd7 {[%emt 0:00:07]} 8. Nc3 {[%emt 0:00:13]} dxc4 {[%emt 0:01:22]} 9. e4 {[%emt 0:00:20]} c6 {[%emt 0:01:45]} 10. Bf4 {[%emt 0:02:06]} Re8 {[%emt 0:10:04]} 11. a4 {[%emt 0:00:48]} a5 {[%emt 0:00:54]} 12. Qe2 {[%emt 0:02:14]} b6 {[%emt 0:02:50]} 13. Nd2 {[%emt 0:05:08]} Ba6 {[%emt 0:00:41]} 14. Rfd1 {[%emt 0:02:01]} Bf8 {[%emt 0:10:53]} 15. Nxc4 {[%emt 0:07:19]} Nd5 {[%emt 0:02:35]} 16. Bd2 {[%emt 0:10:48]} e5 {[%emt 0:18:25]} 17. exd5 {[%emt 0:11:43]} exd4 {[%emt 0:00:11]} 18. Qg4 {[%emt 0:08:20]} Bxc4 {[%emt 0:01:40]} 19. Qxd4 {[%emt 0:07:17]} Ne5 {[%emt 0:00:40]} 20. Be3 {[%emt 0:04:37]} Bc5 {[%emt 0:02:47]} 21. Qf4 {[%emt 0:00:51]} Bb3 {[%emt 0:05:38]} 22. dxc6 {[%emt 0:03:08]} Bxd1 {[%emt 0:00:16]} 23. Rxd1 {[%emt 0:00:17]} Qc8 {[%emt 0:02:08]} 24. Bxc5 {[%emt 0:03:21]} bxc5 {[%emt 0:00:07]} 25. Nb5 {[%emt 0:00:59]} Nxc6 {[%emt 0:01:27]} 26. Nd6 {[%emt 0:12:04]} Qd7 {[%emt 0:00:14]} 27. Bxc6 {[%emt 0:01:50]} Qxc6 {[%emt 0:00:05]} 28. Qxf7+ {[%emt 0:00:06]} Kh8 {[%emt 0:00:02]} 29. Nxe8 {[%emt 0:01:01]} Rxe8 {[%emt 0:00:06]} 30. b3 {[%emt 0:00:41]} h6 {[%emt 0:01:21]} 31. h4 {[%emt 0:01:16]} Kh7 {[%emt 0:03:33]} 32. Qd5 {[%emt 0:02:29]} Qb6 {[%emt 0:00:46]} 33. Rc1 {[%emt 0:02:27]} Rd8 {[%emt 0:05:44]} 34. Qxc5 {[%emt 0:01:37]} Qxb3 {[%emt 0:00:07]} 35. Qxa5 {[%emt 0:00:50]} Rd1+ {[%emt 0:00:05]} 36. Rxd1 {[%emt 0:00:10]} Qxd1+ {[%emt 0:00:02]} 37. Kg2 {[%emt 0:00:33]} Qc2 {[%emt 0:00:05]} 38. Qa8 {[%emt 0:00:26]} 1-0